fUST/lending_fUST_20250817
["ID","MTS","AMOUNT","RATE_DAILY","PERIOD"]
[379901048,1755435044867,-480.0,0.00019726,2]
[379901050,1755435044876,-504.74,0.00019726,2]
[379901052,1755435044885,-480.0,0.00019726,2]
[379901054,1755435044894,-1133.78,0.00019726,2]
[379901055,1755435044903,-480.0,0.00019726,2]
[379901057,1755435044913,-444.37699331,0.00019726,2]
[379901059,1755435044922,-767.52,0.00019726,2]
[379901061,1755435044931,-480.0,0.00019726,2]
[379901063,1755435044940,-480.0,0.00019726,2]
[379901064,1755435044949,-480.0,0.00019726,2]
[379901066,1755435044959,-671.35,0.00019726,2]
[379901068,1755435044968,-574.9841243,0.00019726,2]
[379901070,1755435044977,-480.0,0.00019726,2]
[379901071,1755435044986,-480.0,0.00019726,2]
[379901073,1755435044995,-687.57,0.00019726,2]
[379901075,1755435045004,-1105.08,0.00019726,2]
[379901077,1755435045013,-480.0,0.00019726,2]
[379901078,1755435045022,-480.0,0.00019726,2]
[379901080,1755435045031,-480.0,0.00019726,2]
[379901082,1755435045040,-480.0,0.00019726,2]
[379901084,1755435045049,-698.56,0.00019726,2]
[379901085,1755435045058,-480.0,0.00019726,2]
[379901087,1755435045067,-979.71,0.00019726,2]
[379901089,1755435045076,-480.0,0.00019726,2]
[379901091,1755435045085,-480.0,0.00019726,2]
[379901092,1755435045094,-480.0,0.00019726,2]
[379901094,1755435045104,-8389.97,0.00019726,2]
[379901096,1755435045113,-2436.81,0.00019726,2]
[379901098,1755435045122,-1489.26,0.00019726,2]
[379901100,1755435045133,-154.96219892,0.00019726,2]
[379901101,1755435045143,-5548.01,0.00019726,2]
[379901103,1755435045153,-480.0,0.00019726,2]
[379901105,1755435045162,-464.24593285,0.00019726,2]
[379901107,1755435045172,-480.0,0.00019726,2]
[379901109,1755435045181,-1249.64,0.00019726,2]
[379901110,1755435045191,-480.0,0.00019726,2]
[379901112,1755435045200,-871.84,0.00019726,2]
[379901114,1755435045210,-480.0,0.00019726,2]
[379901116,1755435045220,-590.46,0.00019726,2]
[379901118,1755435045236,-1670.48,0.00019726,2]
[379901120,1755435045246,-460.0,0.00019726,2]
[379901121,1755435045254,-480.0,0.00019726,2]
[379901123,1755435045264,-480.0,0.00019726,2]
[379901125,1755435045274,-480.0,0.00019726,2]
[379901127,1755435045283,-480.0,0.00019726,2]
[379901129,1755435045294,-480.0,0.00019726,2]
[379901130,1755435045304,-480.0,0.00019726,2]
[379901133,1755435045325,-480.0,0.00019726,2]
[379901136,1755435045359,-480.0,0.00019726,2]
[379901138,1755435045375,-760.19,0.00019726,2]
[379901139,1755435045384,-480.0,0.00019726,2]
[379901141,1755435045397,-1936.43,0.00019726,2]
[379901143,1755435045407,-1153.13,0.00019726,2]
[379901145,1755435045415,-480.0,0.00019726,2]
[379901147,1755435045425,-2040.33,0.00019726,2]
[379901148,1755435045434,-480.0,0.00019726,2]
[379901150,1755435045443,-480.0,0.00019726,2]
[379901152,1755435045452,-446.99,0.00019726,2]
[379901154,1755435045462,-480.0,0.00019726,2]
[379901155,1755435045474,-480.0,0.00019726,2]
[379901167,1755435045593,-6764.62,0.00019726,2]
[379901169,1755435045603,-480.0,0.00019726,2]
[379901170,1755435045612,-3226.36,0.00019726,2]
[379901172,1755435045622,-480.0,0.00019726,2]
[379901174,1755435045631,-868.36,0.00019726,2]
[379901176,1755435045641,-444.72883789,0.00019726,2]
[379901178,1755435045650,-480.0,0.00019726,2]
[379901179,1755435045660,-464.95425649,0.00019726,2]
[379901181,1755435045669,-227.52921601,0.00019726,2]
[379901183,1755435045678,-528.75,0.00019726,2]
[379901185,1755435045688,-725.11,0.00019726,2]
[379901186,1755435045697,-1349.15,0.00019726,2]
[379901188,1755435045707,-480.0,0.00019726,2]
[379901190,1755435045717,-713.47,0.00019726,2]
[379901192,1755435045726,-480.0,0.00019726,2]
[379901194,1755435045736,-480.0,0.00019726,2]
[379901196,1755435045746,-480.0,0.00019726,2]
[379901197,1755435045755,-535.55,0.00019726,2]
[379901199,1755435045764,-514.72,0.00019726,2]
[379901201,1755435045773,-480.0,0.00019726,2]
[379901204,1755435045783,-480.0,0.00019726,2]
[379901206,1755435045792,-460.0,0.00019726,2]
[379901207,1755435045801,-480.0,0.00019726,2]
[379901209,1755435045811,-480.0,0.00019726,2]
[379901212,1755435045820,-480.0,0.00019726,2]
[379901214,1755435045829,-708.7,0.00019726,2]
[379901216,1755435045839,-480.0,0.00019726,2]
[379901218,1755435045848,-500.0,0.00019726,2]
[379901219,1755435045858,-7194.52432519,0.00019742,2]
[379901221,1755435045867,-2264.10087164,0.00019774,2]
[379901224,1755435045877,-151.0,0.000198,2]
[379901226,1755435045886,-151.0,0.000198,2]
[379901228,1755435045897,-2347.87260389,0.00019829,2]
[379901230,1755435045906,-1317.54525317,0.00019845,2]
[379901231,1755435045915,-480.0,0.0001985,2]
[379901233,1755435045925,-483.21546253,0.0001985,2]
[379901235,1755435045934,-480.0,0.0001985,2]
[379901237,1755435045943,-480.0,0.0001985,2]
[379901239,1755435045952,-480.0,0.0001985,2]
[379901240,1755435045961,-480.0,0.0001985,2]
[379901242,1755435045970,-480.0,0.0001985,2]
[379901244,1755435045980,-480.0,0.0001985,2]
[379901246,1755435045989,-252.949911,0.00019863,2]
[379901248,1755435045998,-240.0,0.00019883,2]
[379901249,1755435046008,-2434.74389024,0.00019884,2]
[379901251,1755435046017,-500.0,0.00019888,2]
[379901253,1755435046026,-500.0,0.00019888,2]
[379901255,1755435046036,-502.31631118,0.00019888,2]
[379901257,1755435046046,-500.0,0.00019888,2]
[379901259,1755435046055,-151.0,0.000199,2]
[379901260,1755435046065,-6341.30828566,0.000199,2]
[379901262,1755435046074,-168.89639418,0.00019914,2]
[379901264,1755435046085,-674.90999113,0.00019914,2]
[379901266,1755435046095,-2524.82941417,0.00019939,2]
[379901268,1755435046105,-2450.62,0.00019954,2]
[379901270,1755435046114,-480.0,0.00019954,2]
[379901272,1755435046124,-779.094078,0.00019955,2]
[379901274,1755435046133,-500.0,0.00019973,2]
[379901275,1755435046143,-500.0,0.00019973,2]
[379901277,1755435046153,-500.0,0.00019973,2]
[379901279,1755435046163,-500.0,0.00019973,2]
[379901281,1755435046172,-500.0,0.00019973,2]
[379901283,1755435046182,-500.0,0.00019973,2]
[379901285,1755435046191,-500.0,0.00019973,2]
[379901287,1755435046200,-500.0,0.00019973,2]
[379901288,1755435046209,-500.0,0.00019973,2]
[379901290,1755435046218,-500.0,0.00019973,2]
[379901292,1755435046233,-500.0,0.00019973,2]
[379901294,1755435046243,-500.0,0.00019973,2]
[379901296,1755435046253,-500.0,0.00019973,2]
[379901298,1755435046263,-500.0,0.00019973,2]
[379901300,1755435046272,-501.874881,0.00019973,2]
[379901302,1755435046282,-500.0,0.00019973,2]
[379901304,1755435046291,-321.39518952,0.00019973,2]
[379901305,1755435046300,-328.36230319,0.00019973,2]
[379901307,1755435046310,-500.0,0.00019973,2]
[379901309,1755435046319,-500.0,0.00019973,2]
[379901311,1755435046328,-500.0,0.00019973,2]
[379901313,1755435046338,-262.81543971,0.00019973,2]
[379901315,1755435046347,-500.0,0.00019973,2]
[379901317,1755435046358,-181181.79494187,0.0001998,2]
[379901354,1755435047244,-0.06418187,0.00019178,2]
[379901355,1755435047256,-479.93581813,0.00019178,2]
[379901356,1755435047265,-480.0,0.00019452,2]
[379901357,1755435047275,-412.0,0.00019851,2]
[379901358,1755435047284,-414.69520532,0.00019882,2]
[379901359,1755435047293,-4255.23140077,0.0001998,2]
[379901360,1755435047305,-32234.46600709,0.0001998,2]
[379901361,1755435047315,-537.0600867,0.0001998,2]
[379901362,1755435047326,-95531.02136529,0.0001998,2]
[379901363,1755435047448,-511.82837206,0.00019178,2]
[379901364,1755435047457,-4849.65649292,0.0001998,2]
[379901365,1755435047469,-421.1258277,0.00019982,2]
[379901366,1755435047480,-74.60049811,0.00019982,2]
[379901367,1755435047489,-156.51328,0.0002,2]
[379901368,1755435047498,-156.51328,0.0002,2]
[379901369,1755435047509,-151.0,0.0002,2]
[379901370,1755435047518,-151.0,0.0002,2]
[379901371,1755435047527,-500.0,0.0002,2]
[379901372,1755435047536,-151.0,0.0002,2]
[379901373,1755435047546,-151.0,0.0002,2]
[379901374,1755435047555,-151.0,0.0002,2]
[379901375,1755435047564,-173.637761,0.0002,2]
[379901376,1755435047574,-151.0,0.0002,2]
[379901377,1755435047583,-151.0,0.0002,2]
[379901378,1755435047592,-146.5163048,0.0002,2]
[379901379,1755435047603,-333.4836952,0.0002,2]
[379901380,1755435047612,-2170.22464671,0.0002,2]
[379901381,1755435047623,-402.97729121,0.0002,2]
[379901382,1755435047682,-480.0,0.00019178,2]
[379901383,1755435047692,-406.82976669,0.0002,2]
[379901384,1755435047701,-948.7,0.0002,2]
[379901385,1755435047710,-480.0,0.0002,2]
[379901386,1755435047719,-480.0,0.0002,2]
[379901387,1755435047729,-593.52,0.0002,2]
[379901388,1755435047738,-480.0,0.0002,2]
[379901391,1755435047861,-410.36936193,0.0002,2]
[379901393,1755435047871,-935.48,0.0002,2]
[379901395,1755435047880,-480.0,0.0002,2]
[379901397,1755435047890,-480.0,0.0002,2]
[379901399,1755435047900,-480.0,0.0002,2]
[379901401,1755435047909,-480.0,0.0002,2]
[379901403,1755435047918,-480.0,0.0002,2]
[379901405,1755435047928,-480.0,0.0002,2]
[379901407,1755435047937,-484.08,0.0002,2]
[379901409,1755435047946,-661.89,0.0002,2]
[379901411,1755435047955,-480.0,0.0002,2]
[379901413,1755435047964,-480.0,0.0002,2]
[379901414,1755435047973,-480.0,0.0002,2]
[379901416,1755435047982,-1212.51,0.0002,2]
[379901419,1755435047992,-489.12,0.0002,2]
[379901421,1755435048001,-4453.50087146,0.0002,2]
[379901423,1755435048012,-1586.68939826,0.0002,2]
[379901425,1755435048023,-12786.27635864,0.0002,2]
[379901427,1755435048034,-22670.64337164,0.0002,2]
[379901429,1755435048044,-695.25,0.0002,2]
[379901431,1755435048053,-480.0,0.0002,2]
[379901433,1755435048063,-620.35,0.0002,2]
[379901435,1755435048072,-480.0,0.0002,2]
[379901437,1755435048082,-1042.96,0.0002,2]
[379901439,1755435048091,-133.09391464,0.0002,2]
[379901441,1755435048102,-346.90608536,0.0002,2]
[379901443,1755435048112,-480.0,0.0002,2]
[379901445,1755435048122,-493.77,0.0002,2]
[379901447,1755435048131,-480.0,0.0002,2]
[379901449,1755435048141,-480.0,0.0002,2]
[379901451,1755435048151,-920.01,0.0002,2]
[379901453,1755435048160,-936.38,0.0002,2]
[379901455,1755435048170,-480.0,0.0002,2]
[379901457,1755435048179,-504.74,0.0002,2]
[379901459,1755435048189,-480.0,0.0002,2]
[379901461,1755435048198,-1133.78,0.0002,2]
[379901463,1755435048207,-480.0,0.0002,2]
[379901465,1755435048216,-480.0,0.0002,2]
[379901467,1755435048226,-480.0,0.0002,2]
[379901469,1755435048236,-480.0,0.0002,2]
[379901471,1755435048245,-671.35,0.0002,2]
[379901473,1755435048254,-480.0,0.0002,2]
[379901475,1755435048264,-480.0,0.0002,2]
[379901477,1755435048273,-687.57,0.0002,2]
[379901479,1755435048283,-480.0,0.0002,2]
[379901481,1755435048293,-480.0,0.0002,2]
[379901483,1755435048302,-480.0,0.0002,2]
[379901485,1755435048312,-480.0,0.0002,2]
[379901487,1755435048323,-698.56,0.0002,2]
[379901489,1755435048333,-979.71,0.0002,2]
[379901491,1755435048343,-480.0,0.0002,2]
[379901493,1755435048352,-480.0,0.0002,2]
[379901495,1755435048362,-480.0,0.0002,2]
[379901497,1755435048372,-8389.97,0.0002,2]
[379901499,1755435048383,-2436.81,0.0002,2]
[379901501,1755435048394,-160.0,0.0002,3]
[379901503,1755435048404,-480.0,0.0002,2]
[379901504,1755435048414,-160.0,0.0002,3]
[379901506,1755435048423,-480.0,0.0002,2]
[379901508,1755435048432,-1249.64,0.0002,2]
[379901510,1755435048442,-480.0,0.0002,2]
[379901512,1755435048452,-871.84,0.0002,2]
[379901514,1755435048462,-480.0,0.0002,2]
[379901516,1755435048476,-590.46,0.0002,2]
[379901518,1755435048485,-1670.48,0.0002,2]
[379901520,1755435048495,-480.0,0.0002,2]
[379901522,1755435048504,-480.0,0.0002,2]
[379901524,1755435048514,-480.0,0.0002,2]
[379901526,1755435048524,-427.55597581,0.0002,2]
[379901528,1755435048533,-480.0,0.0002,2]
[379901530,1755435048543,-480.0,0.0002,2]
[379901532,1755435048553,-480.0,0.0002,2]
[379901534,1755435048563,-760.19,0.0002,2]
[379901536,1755435048573,-1936.43,0.0002,2]
[379901538,1755435048583,-1153.13,0.0002,2]
[379901540,1755435048592,-1224.30885197,0.0002,2]
[379901543,1755435048604,-816.02114803,0.0002,2]
[379901545,1755435048613,-480.0,0.0002,2]
[379901547,1755435048623,-463.7389508,0.0002,2]
[379901549,1755435048632,-480.0,0.0002,2]
[379901551,1755435048641,-480.0,0.0002,2]
[379901553,1755435048651,-5401.11807533,0.0002,2]
[379901555,1755435048662,-460.0,0.0002,2]
[379901557,1755435048674,-903.50192467,0.0002,2]
[379901559,1755435048683,-365.6362653,0.0002,2]
[379901561,1755435048694,-114.3637347,0.0002,2]
[379901563,1755435048703,-423.79672556,0.0002,2]
[379902876,1755435062180,-177.9260266,0.00019178,2]
[379903180,1755435065297,-265.04319423,0.00019177,2]
[379904202,1755435089000,-34.95680577,0.00019177,2]
[379904203,1755435089023,-190.54471986,0.00019177,2]
[379904204,1755435089045,-76.26762983,0.00019178,2]
[379904205,1755435090473,-208.54521185,0.00019178,2]
[379904206,1755435092688,-17.26113172,0.00019178,2]
[379904207,1755435092710,-284.50802374,0.00019178,2]
[379904208,1755435093702,-284.50802374,0.00019178,2]
[379904209,1755435096341,-27.06676936,0.00019178,2]
[379904210,1755435096365,-261.03508184,0.00019178,2]
[379904211,1755435098439,-261.03508184,0.00019178,2]
[379904214,1755435155433,-355.18454811,0.00018887,2]
[379904215,1755435155457,-27.64070828,0.00018986,2]
[379904216,1755435157892,-253.03501115,0.00018986,2]
[379904217,1755435161047,-217.4410899,0.00018986,2]
[379904218,1755435162496,-1.88319067,0.00018986,2]
[379904219,1755435162522,-251.92939213,0.00019078,2]
[379904222,1755435166942,-181.08103901,0.00019078,2]
[379904223,1755435169991,-186.63622741,0.00019078,2]
[379904224,1755435172268,-165.02603602,0.00019078,2]
[379904225,1755435174032,-215.32730543,0.00019078,2]
[379904226,1755435174055,-7.67896862,0.00019078,2]
[379904227,1755435176087,-312.13297513,0.00019078,2]
[379904228,1755435180904,-180.92430959,0.00019078,2]
[379904229,1755435183440,-270.18199684,0.00019078,2]
[379904230,1755435187143,-296.2387423,0.00019077,2]
[379904231,1755435190287,-3.7612577,0.00019077,2]
[379904232,1755435190310,-173.48406566,0.00019078,2]
[379904233,1755435192770,-300.0,0.00019078,2]
[379904234,1755435195493,-165.86629641,0.00019078,2]
[379904235,1755435197064,-336.66577435,0.00019078,2]
[379904236,1755435199513,-334.6202925,0.00019078,2]
[379904237,1755435201707,-395.6458207,0.00019078,2]
[379904238,1755435204371,-198.66499897,0.00019078,2]
[379904239,1755435212615,-288.09008906,0.00019078,2]
[379904240,1755435214687,-219.98778268,0.00019078,2]
[379904241,1755435219957,-151.71134263,0.00018983,2]
[379904242,1755435219980,-2.16499174,0.00019078,2]
[379904243,1755435223120,-254.76963661,0.00019078,2]
[379904244,1755435226423,-155.22210208,0.00019078,2]
[379904245,1755435228961,-300.0,0.00019078,2]
[379904246,1755435230431,-310.71915406,0.00019078,2]
[379904247,1755435234240,-526.0178451,0.00019078,2]
[379904248,1755435238476,-534.31690507,0.00019078,2]
[379904249,1755435242060,-163.04757928,0.00019078,2]
[379904250,1755435245462,-400.308395,0.00019078,2]
[379904251,1755435248041,-205.71949291,0.00019078,2]
[379904252,1755435268332,-192.92989737,0.00019078,2]
[379904253,1755435270404,-289.84589941,0.00019078,2]
[379904254,1755435274852,-284.23104358,0.00019078,2]
[379904255,1755435277236,-235.9052996,0.00019078,2]
[379904256,1755435278786,-151.15445482,0.00019078,2]
[379904257,1755435283715,-300.0,0.00019078,2]
[379904258,1755435285975,-284.97553405,0.00019078,2]
[379904259,1755435290390,-170.5846242,0.00019078,2]
[379904260,1755435292649,-230.33800327,0.00019078,2]
[379904261,1755435295141,-172.98712296,0.00019078,2]
[379904262,1755435298957,-164.67628071,0.00019078,2]
[379904263,1755435301068,-263.50347645,0.00019078,2]
[379904264,1755435304907,-286.16335175,0.00019078,2]
[379904265,1755435310547,-193.97248758,0.00019078,2]
[379904266,1755435313570,-166.40630692,0.00019078,2]
[379904267,1755435316156,-151.90017713,0.00019078,2]
[379904268,1755435318249,-225.63515505,0.00019078,2]
[379904269,1755435320791,-248.34537174,0.00019078,2]
[379904270,1755435323327,-170.85901888,0.00019077,2]
[379904271,1755435324944,-293.14722076,0.00019077,2]
[379904272,1755435326469,-161.83628158,0.00019077,2]
[379904273,1755435331459,-154.08709537,0.00019077,2]
[379904274,1755435334822,-56.7561903,0.00019077,2]
[379904275,1755435334847,-298.39935397,0.00019078,2]
[379904276,1755435336520,-425.98153719,0.00019078,2]
[379904277,1755435342185,-151.90456186,0.00019078,2]
[379904278,1755435350060,-450.16044272,0.00019078,2]
[379904279,1755435353162,-454.96180776,0.00019078,2]
[379904280,1755435355737,-163.912698,0.00019078,2]
[379904281,1755435361164,-195.41549437,0.00018978,2]
[379904282,1755435362899,-162.8967231,0.00018978,2]
[379904283,1755435365060,-165.026036,0.00018978,2]
[379904284,1755435367634,-219.61374937,0.00018978,2]
[379904285,1755435370831,-165.026036,0.00018978,2]
[379904286,1755435372303,-165.026036,0.00018978,2]
[379904287,1755435374925,-237.87766997,0.00018978,2]
[379904288,1755435378064,-96.09785787,0.00018978,2]
[379904289,1755435378088,-124.66796838,0.00019,2]
[379904290,1755435381267,632.413087,0.00013699,2]
[379904291,1755435381892,-28.70458756,0.00019,2]
[379904292,1755435381916,-171.79541244,0.00019077,2]
[379904293,1755435383312,-76.5499593,0.00019077,2]
[379904294,1755435383337,-141.1600407,0.00019077,2]
[379904295,1755435386430,-158.8399593,0.00019077,2]
[379904296,1755435386456,-60.9000407,0.00019077,2]
[379904297,1755435389926,-175.48223957,0.00019077,2]
[379904298,1755435393178,-322.46776043,0.00019077,2]
[379904299,1755435396089,-302.60665372,0.00018712,2]
[379904300,1755435398200,-297.39334628,0.00018712,2]
[379904301,1755435398225,-25.80400995,0.00019077,2]
[379904302,1755435422527,-206.91517266,0.000189,2]
[379904303,1755435426208,-22.54331859,0.000189,2]
[379904304,1755435426233,-191.52528135,0.00019077,2]
[379904305,1755435449235,-294.47972331,0.00018977,2]
[379904306,1755435451844,-162.56840612,0.00018977,2]
[379904307,1755435453416,-185.1706466,0.00018977,2]
[379904308,1755435456871,-257.17082808,0.00018977,2]
[379904309,1755435458618,-320.08611085,0.00018977,2]
[379904310,1755435461666,-152.0,0.00018977,2]
[379904311,1755435464308,-83.61321157,0.00018977,2]
[379904312,1755435504281,-249.11963327,0.00018978,2]
[379904313,1755435507070,-192.94,0.00018978,2]
[379904314,1755435509120,-178.66050144,0.00018978,2]
[379904315,1755435512118,-200.0,0.00018978,2]
[379904316,1755435568122,-179.3206256,0.00018978,2]
[379904317,1755435591889,-266.08567364,0.00018977,2]
[379904318,1755435591916,-53.72703758,0.00018978,2]
[379904319,1755435593438,-339.60183204,0.00018978,2]
[379904320,1755435594841,-29.67605374,0.00018978,2]
[379904321,1755435666679,-275.65095727,0.00018878,2]
[379904323,1755435672293,-190.93571439,0.00018878,2]
[379904324,1755435675021,-192.82787159,0.00018878,2]
[379904325,1755435675045,-23.90365604,0.00019061,2]
[379904326,1755435677659,-225.83644242,0.00019061,2]
[379904327,1755435684378,-154.84455189,0.00019061,2]
[379904328,1755435686319,-49.44518129,0.00019061,2]
[379904329,1755435686343,-154.71658238,0.00019067,2]
[379904330,1755435691375,-186.39371625,0.00019067,2]
[379904334,1755435714940,-190.96017809,0.00018819,2]
[379904335,1755435714965,-65.6145051,0.000189,2]
[379904336,1755435717085,-158.71402238,0.000189,2]
[379904337,1755435717109,-106.12520932,0.00018976,2]
[379904338,1755435720753,-159.96046432,0.00018976,2]
[379904339,1755435720777,-5.97470259,0.00019067,2]
[379904340,1755435726542,-239.5030925,0.00019067,2]
[379904341,1755435754501,-183.34012979,0.00019067,2]
[379904342,1755435756110,-298.12008028,0.00019067,2]
[379904343,1755435758605,-156.24093166,0.00019067,2]
[379904344,1755435761100,-151.15445482,0.00019067,2]
[379904345,1755435764318,-286.46223828,0.00019067,2]
[379904346,1755435765864,-180.18728878,0.00019067,2]
[379904347,1755435769042,-238.66734729,0.00019067,2]
[379904348,1755435770484,-151.0,0.00019067,2]
[379904349,1755435792958,-67.2076723,0.00019067,2]
[379904350,1755435792981,-118.4623277,0.00019076,2]
[379904351,1755435796434,-137.5376723,0.00019076,2]
[379904352,1755435796456,-226.58669517,0.00019077,2]
[379904353,1755435798020,-73.41330483,0.00019077,2]
[379904354,1755435798043,-294.75533257,0.00019077,2]
[379904355,1755435800021,-5.24466743,0.00019077,2]
[379904356,1755435800045,-235.11847857,0.00019077,2]
[379904357,1755435802038,-151.0,0.00018976,2]
[379904358,1755435804293,-250.61005112,0.00018976,2]
[379904359,1755435804318,-45.15911716,0.00019077,2]
[379904366,1755435827809,-302.60665372,0.00018977,2]
[379904367,1755435831960,-183.31,0.00018967,2]
[379904368,1755435834093,-254.82170582,0.00018967,2]
[379904370,1755435836664,-191.88637684,0.00018967,2]
[379904371,1755435839179,-151.15445482,0.00018967,2]
[379904372,1755435840673,-207.1318181,0.00018967,2]
[379904390,1755435928149,-262.36439194,0.00018967,2]
[379904397,1755436033352,4328.0875288,0.000182,10]
[379904398,1755436033869,-218.52617498,0.000182,10]
[379904399,1755436036181,-182.62250706,0.000182,10]
[379904400,1755436038292,-167.76378916,0.000182,10]
[379904405,1755436198556,-187.41557551,0.00018712,2]
[379904406,1755436200212,-300.0,0.00018712,2]
[379904407,1755436201691,-112.58442449,0.00018712,2]
[379904414,1755436232600,-191.88637684,0.00018819,2]
[379904415,1755436232609,-308.52621004,0.00018867,2]
[379904416,1755436232619,-225.51589747,0.000189,2]
[379904417,1755436232628,-1112.77660116,0.00018967,2]
[379904418,1755436232659,-894.96228092,0.00018967,2]
[379904419,1755436232669,-920.0,0.00019077,2]
[379904420,1755436232678,-300.0,0.00019077,2]
[379904421,1755436232687,-317.19180027,0.00019077,2]
[379904422,1755436232696,-2570.90138141,0.00019078,2]
[379904423,1755436232712,-2431.5627823,0.00019078,2]
[379904425,1755436232723,-7435.69500152,0.00019078,2]
[379904427,1755436232732,-1918.91356559,0.00019078,2]
[379904479,1755436238520,-1005.16521638,0.00019078,2]
[379904481,1755436238530,-151.0,0.00019078,2]
[379904483,1755436238540,-151.0,0.00019078,2]
[379904484,1755436238549,-158.96735405,0.00019078,2]
[379904485,1755436238558,-6639.96664099,0.00019078,2]
[379904486,1755436238571,-26891.82725463,0.00019078,2]
[379904487,1755436238580,-47171.71260768,0.00019078,2]
[379904488,1755436238589,-1551.60491831,0.00019107,2]
[379904489,1755436238599,-206.91517266,0.00019166,2]
[379904490,1755436238608,-1957.04,0.00019168,3]
[379904491,1755436238617,-1046.46,0.00019168,3]
[379904492,1755436238626,-620.71,0.00019168,3]
[379904493,1755436238635,-310.35,0.00019168,3]
[379904494,1755436238645,-155.18,0.00019168,3]
[379904495,1755436238654,-164.49,0.00019168,3]
[379904496,1755436238665,-659.43,0.00019168,3]
[379904497,1755436238674,-510.97540017,0.00019173,2]
[379904498,1755436238683,-500.0,0.00019173,2]
[379904499,1755436238692,-500.0,0.00019173,2]
[379904500,1755436238701,-500.0,0.00019173,2]
[379904501,1755436238711,-500.0,0.00019173,2]
[379904502,1755436238720,-500.0,0.00019173,2]
[379904503,1755436238730,-500.0,0.00019173,2]
[379904504,1755436238739,-150.0,0.00019177,2]
[379904505,1755436238748,-500.0,0.00019177,2]
[379904506,1755436238758,-567.65817335,0.00019177,2]
[379904508,1755436238767,-546.09637653,0.00019178,2]
[379904509,1755436238776,-445.6003342,0.00019178,2]
[379904510,1755436238785,-480.0,0.00019178,2]
[379904511,1755436238793,-480.0,0.00019178,2]
[379904512,1755436238803,-185.01763489,0.00019178,2]
[379904513,1755436238811,-480.0,0.00019178,2]
[379904514,1755436238824,-460.0,0.00019178,2]
[379904515,1755436238833,-234.69923263,0.00019178,2]
[379904516,1755436238842,-480.0,0.00019178,2]
[379904517,1755436238851,-480.0,0.00019178,2]
[379904518,1755436238860,-480.0,0.00019178,2]
[379904519,1755436238871,-480.0,0.00019178,2]
[379904520,1755436238880,-480.0,0.00019178,2]
[379904521,1755436238891,-480.0,0.00019178,2]
[379904522,1755436238901,-480.0,0.00019178,2]
[379904524,1755436238911,-480.0,0.00019178,2]
[379904526,1755436238921,-480.0,0.00019178,2]
[379904528,1755436238930,-480.0,0.00019178,2]
[379904530,1755436238939,-480.0,0.00019178,2]
[379904532,1755436238949,-480.0,0.00019178,2]
[379904534,1755436238958,-480.0,0.00019178,2]
[379904536,1755436238967,-480.0,0.00019178,2]
[379904538,1755436238976,-480.0,0.00019178,2]
[379904540,1755436238985,-480.0,0.00019178,2]
[379904542,1755436238995,-460.49993076,0.00019178,2]
[379904544,1755436239004,-480.0,0.00019178,2]
[379904546,1755436239013,-440.0,0.00019178,2]
[379904548,1755436239023,-480.0,0.00019178,2]
[379904550,1755436239032,-480.0,0.00019178,2]
[379904552,1755436239042,-480.0,0.00019178,2]
[379904554,1755436239051,-480.0,0.00019178,2]
[379904556,1755436239060,-480.0,0.00019178,2]
[379904558,1755436239070,-480.0,0.00019178,2]